{"text_format":"1","workbook":"xlsx","n_sheets":8,"sheets":["COPERTINA","MASCHI 2006","FEMMINE 2006","MASCHI 2007","FEMMINE 2007","MASCHI 2008","FEMMINE 2008","SCUOLE"],"not_rendered":{"charts":0,"images":7,"macros":1,"external_links":0,"defined_names":7,"comments":0,"pivot_tables":0},"unopened":[],"bounds":{"document_bytes":16777216,"sheet_cells":100000,"rows_first":2000,"rows_last":500,"rows_between":2000,"halvings":0,"cell_chars":16384,"cell_head_chars":4096},"cells_cut":0,"cells_raw":0,"read":"whole","date_system":"1900"}

{"sheet":"COPERTINA","index":0,"n_rows":21,"n_cols":12,"rows_kept":21,"cut":false,"hidden":false,"merged":[]}
[]
[]
[]
[]
[]
[]
[]
[]
[]
[]
[]
[null,null,"PAGINA  1",null,"Classifica maschi del 2006",null,null,null,"LINK"]
[null,null,"PAGINA  2",null,"Classifica femmine del 2006",null,null,null,"LINK"]
[null,null,null,null,null,null,null,null,null,null,null,"Trofeo \"Christian Bartoli\" "]
[null,null,"PAGINA  3",null,"Classifica maschi del 2007",null,null,null,"LINK"]
[null,null,"PAGINA  4",null,"Classifica femmine del 2007",null,null,null,"LINK",null,null,"Atletica Livorno"]
[]
[null,null,"PAGINA  5",null,"Classifica maschi del 2008",null,null,null,"LINK"]
[null,null,"PAGINA  6",null,"Classifica femmine del 2008",null,null,null,"LINK"]
[]
[null,null,"PAGINA  7",null,"CLASSIFICA FINALE SCUOLE",null,null,null,"LINK"]

{"sheet":"MASCHI 2006","index":1,"n_rows":153,"n_cols":6,"rows_kept":153,"cut":false,"hidden":false,"merged":[]}
[null,null,null,"HOME"]
[]
[null,null,"25.a edizione"]
[null,null,"    \"CAMPESTRE SCUOLA MARATONA\""]
[null,null,"      18° TROFEO CHRISTIAN BARTOLI"]
[null,null,"LIVORNO - CAMPO SCUOLA \"R. MARTELLI\"  -   9 NOVEMBRE 2019"]
[null,null,"ORGANIZZAZIONE: A.S.D. Livornomarathon e Atletica Livorno"]
[]
[null,null,"RISULTATI"]
[]
[null,null,"MASCHI NATI 2006 (M. 1500)"]
[null,"cl.","Cognome","Nome","Istituto","Tempo"]
[null,1,"Ceccarini","Gabriele","Don Angeli","5:30.1"]
[null,2,"Del Vecchio","Antonio","Picchi","5:30.2"]
[null,3,"Ariboni","Giorgio","Micali","5:33.1"]
[null,4,"Fasano","Federico","Bartolena","5:38.0"]
[null,5,"Biondi","Alessandro","Bartolena","5:38.0"]
[null,6,"Moretti","Omar","Micali","5:44.0"]
[null,7,"Savi","Francesco","Picchi","5:45.2"]
[null,8,"Attanasio","Giacomo","Benedettini","5:51.1"]
[null,9,"Teghini","Alberto","Picchi","5:52.0"]
[null,10,"Garofoli","Andrea","Micali","5:54.1"]
[null,11,"Bicchierini","Lorenzo","Bartolena","6:00.5"]
[null,12,"Di Ercole","Filippo","Micali","6:02.3"]
[null,13,"Prota ","Mattia","Mazzini","6:03.0"]
[null,14,"Giudici","Gabriele","Picchi","6:03.5"]
[null,15,"Zanatta","Mattia","Mazzini","6:04.3"]
[null,16,"Giacomelli","Simone","Mazzini","6:09.1"]
[null,17,"Pardini","Tommaso","Mazzini","6:10.9"]
[null,18,"Carbonel","Tommaso","Maria Ausiliatrice","6:14.0"]
[null,19,"Saladino","Matteo","Borsi-Pazzini","6:16.0"]
[null,20,"Auola","Lorenzo","Mazzini","6:16.1"]
[null,21,"Cicero","Francesco","Mazzini","6:17.0"]
[null,22,"Bencreati Pepe","Lorenzo","Picchi","6:18.0"]
[null,23,"Rodio","Tommaso","Picchi","6:19.0"]
[null,24,"Altini","Gabriele","Bartolena","6:20.0"]
[null,25,"Tarantino","Simone","Picchi","6:20.0"]
[null,26,"Barrera","Valerio","Bartolena","6:21.0"]
[null,27,"D'andrea","Filippo","Bartolena","6:22.0"]
[null,28,"Desideri","Tommaso","Mazzini","6:24.3"]
[null,29,"Ciurli","Samuele","Benedettini","6:26.2"]
[null,30,"Contessotto","Arthurs","Bartolena","6:27.0"]
[null,31,"Canepa","Giorgio","Micali","6:28.0"]
[null,32,"Sorbo","Fabio","Bartolena","6:28.5"]
[null,33,"Marchini","Luca","Mazzini","6:29.0"]
[null,34,"Toriani","Filippo","Bartolena","6:30.0"]
[null,35,"Bernini","Brando","Mazzini","6:30.3"]
[null,36,"Zaoi","Lorenzo","Bartolena","6:31.0"]
[null,37,"Pirone","Giulio","Mazzini","6:32.0"]
[null,38,"Sarri","Lorenzo","Micali","6:33.0"]
[null,39,"Mannucci","Giacomo","Mazzini","6:33.5"]
[null,40,"Maniscalco","Kevin","Bartolena","6:34.0"]
[null,41,"Haka","Claudio","Picchi","6:35.0"]
[null,42,"Fulceri","Filippo","Picchi","6:36.0"]
[null,43,"Doro","Federico","Mazzini","6:36.6"]
[null,44,"Ramacciotti","Marco","Bartolena","6:37.0"]
[null,45,"Rencricca","Francesco","Bartolena","6:40.0"]
[null,46,"Fiumaldi","Nicholas","Mazzini","6:41.0"]
[null,47,"Casarosa","Matteo","Benedettini","6:41.0"]
[null,48,"Fecchi","Matteo","Mazzini","6:41.6"]
[null,49,"Poltri","Michele","Bartolena","6:43.0"]
[null,50,"Crea","Filippo","Mazzini","6:44.0"]
[null,51,"Poli","Alberto","Micali","6:45.0"]
[null,52,"Giordano","Jacopo","Bartolena","6:46.0"]
[null,53,"Parenti","Diego","Mazzini","6:46.0"]
[null,54,"Cirenei","Samuele","Mazzini","6:46.9"]
[null,55,"Biagiotti","Andrea","Bartolena","6:47.0"]
[null,56,"Fattori","Nicolas","Mazzini","6:48.8"]
[null,57,"Bindi","Andrea","Bartolena","6:50.0"]
[null,58,"Lucarelli","Samuele","Mazzini","6:51.1"]
[null,59,"Di Maio ","Leonardo","Mazzini","6:53.0"]
[null,60,"Di Fonzo","Matteo","Mazzini","6:54.0"]
[null,61,"Lischi","Gabriele","Micali","6:54.1"]
[null,62,"Diamanti","Giacomo","Mazzini","6:55.0"]
[null,63,"Cannone","Federico","Mazzini","6:55.2"]
[null,64,"Pellegrini","Riccardo","Mazzini","6:57.0"]
[null,65,"Bufalini","Davide","Mazzini","6:58.0"]
[null,66,"Chimenti","Samuele","Mazzini","7:01.0"]
[null,67,"Pozzi","Guido","Bartolena","7:02.0"]
[null,68,"Milanelli","Pietro","Bartolena","7:03.0"]
[null,69,"Franceschi","Matteo","Micali","7:04.3"]
[null,70,"Mogrotti","Alessio","Bartolena","7:05.4"]
[null,71,"Vernaccini","Paolo","Micali","7:06.6"]
[null,72,"Zucchelli","Josef","Bartolena","7:07.6"]
[null,73,"Riccioni","Matteo","Mazzini","7:08.8"]
[null,74,"Buzzone","Matteo","Mazzini","7:10.0"]
[null,75,"Moretti","Nicolas","Bartolena","7:11.0"]
[null,76,"Pini","Minmau","Bartolena","7:12.0"]
[null,77,"Russo","Valerio","Mazzini","7:13.1"]
[null,78,"Contini","GIacomo","Borsi-Pazzini","7:14.6"]
[null,79,"Renda","Tommaso","Mazzini","7:16.0"]
[null,80,"Petrucci","Mattia","Bolognesi","7:18.2"]
[null,81,"Baldeschi","Tommaso","Bolognesi","7:18.9"]
[null,82,"Bernini","Andrea","Borsi-Pazzini","7:20.1"]
[null,83,"Di Dato","Angelo","Mazzini","7:24.5"]
[null,84,"Sarri","Francesco","Bartolena","7:25.1"]
[null,85,"Chelli","Nicholas","Borsi-Pazzini","7:29.3"]
[null,86,"Micheli","Giovanni","Borsi-Pazzini","7:29.5"]
[null,87,"Galli","Iacopo","Bartolena","7:30.0"]
[null,88,"Domenici","Walter","Bartolena","7:30.3"]
[null,89,"Marchini","Luca","Mazzini","7:31.1"]
[null,90,"Cadoni","Alessandro","Bartolena","7:34.0"]
[null,91,"Ceselli","Christian","Bartolena","7:35.1"]
[null,92,"Pierangeli","Nicolas","Bartolena","7:36.0"]
[null,93,"Aquino","Luca","Mazzini","7:37.2"]
[null,94,"Carmignani","Diego","Mazzini","7:37.9"]
[null,95,"Gucci","Giulio","Mazzini","7:39.0"]
[null,96,"Giannetti Spareglia","Otto","Bartolena","7:40.0"]
[null,97,"Silvestri","Marco","Bartolena","7:41.2"]
[null,98,"Galli","Iacopo","Bartolena","7:42.2"]
[null,99,"Bartorelli","Tommaso","Benedettini","7:43.1"]
[null,100,"Rossi","Alessio","Bartolena","7:48.5"]
[null,101,"Doria","Edoardo",null,"7:49.6"]
[null,102,"Biagini","Alessandro","Bartolena","7:51.0"]
[null,103,"Marziani","Lorenzo","Mazzini","7:55.6"]
[null,104,"Coglite","Alessio","Picchi","8:03.7"]
[null,105,"Frasca","Ludovico","Picchi","8:04.8"]
[null,106,"Bellucci","Dario","Borsi-Pazzini","8:05.9"]
[null,107,"Colombi","Iacopo","Mazzini","8:07.6"]
[null,108,"Flammia","Francesco","Mazzini","8:09.6"]
[null,109,"Becciu","Andrea","Bolognesi","8:12.0"]
[null,110,"Andreini","Leonardo","Bolognesi","8:13.1"]
[null,111,"Tancredi","Antonio","Picchi","8:14.2"]
[null,112,"Maldovan","Riccardo","Borsi-Pazzini","8:20.3"]
[null,113,"Pavesi","Francesco","Bartolena","8:21.3"]
[null,114,"Micheli","Giovanni","Borsi-Pazzini","8:22.4"]
[null,115,"Hoxha","Arjan","Mazzini","8:24.0"]
[null,116,"Pizzuto","Gabriele","Picchi","8:26.5"]
[null,117,"Vigni","Marcello","Mazzini","8:37.8"]
[null,118,"Galgano","Luca","Mazzini","8:38.0"]
[null,119,"Carmignani","Luca","Mazzini","8:44.1"]
[null,120,"Armani","Gabriele","Picchi","9:00.6"]
[null,121,"Mannucci","Davide","Maria Ausiliatrice","9:00.6"]
[null,122,"Samb","Kader","Bartolena","9:05.5"]
[null,123,"Cortonesi","Marco","Bartolena","9:08.2"]
[null,124,"Scartazza","Nicolò","Bartolena","9:12.8"]
[null,125,"Suardi","Dimitri","Mazzini","9:13.9"]
[null,126,"Nassinbeni","Cosmo","Micali","9:14.6"]
[null,127,"Borri","Riccardo","Micali","9:19.9"]
[null,128,"Bisa","Dario","Mazzini","9:33.3"]
[null,129,"Spagnuolo","Steven","Micali","9:34.3"]
[null,130,"Della Bella","Daniele","Mazzini","10:24.0"]
[null,131,"Bigazzi","Marco","Bartolena","10:26.0"]
[null,132,"Ferrazza","Thomas","Mazzini","10:27.0"]
[null,133,"Ferrara","Luigi","Bartolena","10:28.0"]
[null,134,"Sgherri","Edoardo","Bartolena","10.29.0"]
[null,135,"Conte","Cristiano","Bartolena","10:30.0"]
[null,136,"Popa","Angelo","Bartolena","10:31.0"]
[null,137,"Giusti","Bernardo","Micali","10:45.4"]
[null,138,"Giuffrida ","Riccardo","Micali","10:45.7"]
[null,139,"Plata Garcia","Angel Gabriel","Bolognesi","11:06.6"]
[null,140,"Antonelli","Christian","Picchi","11:12.5"]
[null,141,"Valeri","Vittorio Edoardo","Picchi","12:25.6"]

{"sheet":"FEMMINE 2006","index":2,"n_rows":94,"n_cols":6,"rows_kept":94,"cut":false,"hidden":false,"merged":[]}
[null,null,null,"HOME"]
[]
[null,null,"25.a edizione"]
[null,null,"    \"CAMPESTRE SCUOLA MARATONA\""]
[null,null,"      18° TROFEO CHRISTIAN BARTOLI"]
[null,null,"LIVORNO - CAMPO SCUOLA \"R. MARTELLI\"  -   9 NOVEMBRE 2019"]
[null,null,"ORGANIZZAZIONE: A.S.D. Livornomarathon e Atletica Livorno"]
[]
[null,null,"RISULTATI"]
[]
[null,null,"FEMMINE NATE 2006 (M. 1000)"]
[null,"cl.","Cognome","Nome","Istituto","Tempo"]
[null,1,"Cirinnà","Zoe","Santo Spirito","3:59.3"]
[null,{"$f":"B13+1","v":2},"Zolo","Rebecca","Borsi-Pazzini","4:02.7"]
[null,3,"Nicolucci","Ilenia","Bartolena","4:05.7"]
[null,4,"Filippi","Alessia","Maria Ausiliatrice","4:15.1"]
[null,5,"Risaliti","Anna","Micali","4:16.0"]
[null,6,"Mariani","Teresa","Bartolena","4:16.3"]
[null,7,"Nardi","Vittoria","Bartolena","4:26.0"]
[null,8,"Turchi","Gaia","Micali","4:27.0"]
[null,9,"Rosini","Ania","Bartolena","4:28.0"]
[null,10,"Franculli","Rebecca","Don Angeli","4:30.1"]
[null,11,"Cataldo","Guendalina","Mazzini","4:32.6"]
[null,12,"Bardarè","Aurora","Don Angeli","4:33.0"]
[null,13,"Del Corona","Giulia","Bartolena","4:34.0"]
[null,14,"Silvestri","Eva","Mazzini","4:35.0"]
[null,15,"Favi","Emily","Picchi","4:42.1"]
[null,16,"Saltarelli","Teresa","Bartolena","4:44.4"]
[null,17,"Casini","Sara","Borsi-Pazzini","4:46.2"]
[".",18,"Failli","Matilde","Mazzini","4:48.3"]
[null,19,"Del Freo","Luna","Picchi","4:49.0"]
[null,20,"Menichetti","Caterina","Mazzini","4:50.0"]
[null,21,"Panichi","Matilde","Borsi-Pazzini","4:51.0"]
[null,22,"Caciornia","Sara","Bartolena","4:52.0"]
[null,23,"Boschetto","Camilla","Mazzini","4:54.8"]
[null,24,"Freschi","Clotilde","Bartolena","4:55.0"]
[null,25,"Rossi","Margherita","Bartolena","4:57.0"]
[null,26,"Cocco","Chiara","Picchi","4:58.0"]
[null,27,"Costagli","Viola","Picchi","4:59.0"]
[null,28,"Mannini","Valentina","Bartolena","5:01.0"]
[null,29,"Palazzetti","Silvia","Picchi","5:02.0"]
[null,30,"Miccheli","Dafne","Picchi","5:03.0"]
[null,31,"Buzzo","Anna","Micali","6:00.0"]
[null,32,"Pavesi","Virginia","Bartolena","6:00.1"]
[null,33,"Cristiani","Bianca","Bartolena","6:00.2"]
[null,{"$f":"B45+1","v":34},"Russo ","Sara","Mazzini","6:00.3"]
[null,35,"Quintavalle","Lara","Mazzini","6:00.4"]
[null,36,"Gambarini","Lucrezia","Bartolena","6:00.5"]
[null,37,"Morelli","Alice","Mazzini","6:00.6"]
[null,38,"Mazzia","Claudia","Bartolena","6:00.7"]
[null,39,"Ferrante","Clarissa","Bartolena","6:00.8"]
[null,40,"Vallari","Alessia","Mazzini","6:00.9"]
[null,41,"Falleni","Marta","Micali","6:01.0"]
[null,42,"Giorgi","Sara","Picchi","6:01.1"]
[null,43,"Fantozzi","Asia","Mazzini","6:01.2"]
[null,44,"Mancini","Carolina","Micali","6:01.3"]
[null,45,"Voliani","Greta","Bartolena","6:01.4"]
[null,46,"Carrai","Matilde","Bartolena","6:01.5"]
[null,47,"Turchi","Carolina","Bartolena","6:01.6"]
[null,48,"Salani","Emma","Mazzini","6:01.7"]
[null,49,"Angioni","Laura","Mazzini","6:01.8"]
[null,50,"De Benedetto","Anna","Micali","6:01.9"]
[null,51,"Ania","Marta","Mazzini","6:02.0"]
[null,52,"Cocco","Lucia","Picchi","6:02.1"]
[null,53,"Leozappa","Aurora","Picchi","6:02.2"]
[null,54,"Varletti","Giulia","Mazzini","6:02.3"]
[null,55,"Banti","Alessandra","Mazzini","6:02.4"]
[null,56,"Bartoli","Viola","Bartolena","6:02.5"]
[null,57,"Battini","Chiara","Mazzini","6:02.6"]
[null,58,"Pacelli","Denise","Mazzini","6:02.7"]
[null,59,"Macaluso","Denise","Picchi","6:02.8"]
[null,60,"Pagni","Anna","Mazzini","6:02.9"]
[null,61,"Spagnoli","Lisa","Picchi","6:03.0"]
[null,62,"Bionda","Lea","Picchi","6:03.1"]
[null,63,"Tani ","Enny","Picchi","6:03.2"]
[null,64,"Williers","Dior","Mazzini","6:03.3"]
[null,65,"Frizzi","Sofia","Bartolena","6:03.4"]
[null,{"$f":"B77+1","v":66},"Papucci","Elisa","Mazzini","6:03.5"]
[null,67,"Minuti","Marta","Mazzini","6:03.6"]
[null,68,"Bongi","Natalia","Maria Ausiliatrice","6:03.7"]
[null,69,"Mori","Alice","Picchi","6:03.8"]
[null,70,"Sciapichetti","Laura","Picchi","6:03.9"]
[null,71,"Piantanida","Sara","Mazzini","6:04.0"]
[null,72,"Grassi","Elena","Bartolena","6:04.1"]
[null,73,"Bonatti","Alessia","Bartolena","6:04.2"]
[null,74,"Tedeschi","Eva","Mazzini","6:04.3"]
[null,75,"Biliotti","Chiara","Mazzini","6:04.4"]
[null,76,"Pelletti","Emma","Picchi","6:04.5"]
[null,77,"Comparini","Martina","Picchi","6:04.6"]
[null,78,"Ponzolini","Alissa","Bartolena","6:04.7"]
[null,79,"Cappelli","Federica","Picchi","6:04.8"]
[null,80,"Furci","Aurora","Picchi","6:04.9"]
[null,81,"Montini","Giulia","Picchi","6:05.0"]
[null,82,"Cerrato","Martina","Picchi","6:05.1"]

{"sheet":"MASCHI 2007","index":3,"n_rows":173,"n_cols":6,"rows_kept":173,"cut":false,"hidden":false,"merged":[]}
[null,null,null,"HOME"]
[]
[null,null,"25.a edizione"]
[null,null,"    \"CAMPESTRE SCUOLA MARATONA\""]
[null,null,"      18° TROFEO CHRISTIAN BARTOLI"]
[null,null,"LIVORNO - CAMPO SCUOLA \"R. MARTELLI\"  -   9 NOVEMBRE 2019"]
[null,null,"ORGANIZZAZIONE: A.S.D. Livornomarathon e Atletica Livorno"]
[]
[null,null,"RISULTATI"]
[]
[null,null,"MASCHI NATI 2007 (M. 1200)"]
[null,"cl.","Cognome","Nome","Istituto","Tempo"]
[null,1,"Migli ","Francesco","Bartolena","4:42.8"]
[null,2,"Londi","Miguel","Micali","4:47.6"]
[null,3,"Manfanetti","Edoardo","Borsi-Pazzini","4:49.4"]
[null,4,"Pratellesi","Pietro","Bartolena","4:49.5"]
[null,5,"Tascini","Giovanni","Micali","4:50.0"]
[null,6,"Manteri","Laerte","Mazzini","4:51.0"]
[null,7,"Salvetti","Tommaso","Bartolena","4:53.0"]
[null,8,"Sangiorgi","Leandro","Mazzini","4:54.5"]
[null,9,"Storai","Iacopo","Bartolena","4:55.6"]
[null,10,"Paglino","Giorgio","Micali","4:57.5"]
[null,11,"Marradi","Diego","Micali","5:04.1"]
[null,12,"Basile","Matteo","Bartolena","5:05.0"]
[null,13,"Tavernini","Lorenzo","Bartolena","5:05.2"]
[null,14,"Manca","Pietro","Picchi","5:06.0"]
[null,15,"Mazzotta","Riccardo","Bartolena","5:07.0"]
[null,16,"Turini","Tommaso","Picchi","5:08.0"]
[null,17,"Amadio","Lorenzo","Don Angeli","5:08.6"]
[null,18,"Ambrosini","Cristian","Don Angeli","5:08.8"]
[null,19,"Finocchietti","Marco","Bartolena","5:09.0"]
[null,20,"Menicagli","Paolo Ennio","Bartolena","5:09.1"]
[null,21,"Malloggi","Edoardo","Bartolena","5:12.4"]
[null,22,"Pucciarelli","Alessio","Mazzini","5:15.1"]
[null,23,"Cusimano","Giuseppe","Bartolena","5:15.6"]
[null,24,"Provenzali","Niccolò","Bartolena","5:16.3"]
[null,25,"Marinari","Nicola","Bartolena","5:18.0"]
[null,26,"Orsetti","Vittorio","Micali","5:19.0"]
[null,27,"Luppichini","Leonardo","Micali","5:19.4"]
[null,28,"Benedetti","Daniele","Micali","5:20.0"]
[null,29,"Lottini","Matteo Sergio","Maria Ausiliatrice","5:21.0"]
[null,30,"Serafini","Samuele","Picchi","5:21.3"]
[null,31,"Raffelli","Tommaso","Bartolena","5:22.6"]
[null,32,"Bernini","Luca","Mazzini","5:23.0"]
[null,33,"Bassini","Fabio","Mazzini","5:23.0"]
[null,35,"Sangiacomo","Fabio","Bartolena","5:23.2"]
[null,34,"Ganni","Iacopo","Mazzini","5:24.0"]
[null,36,"Onida","Alessandro","Micali","5:25.9"]
[null,38,"Meini","Vittorio","Mazzini","5:26.0"]
[null,37,"Faraoni","Giacomo","Mazzini","5:29.1"]
[null,39,"Raugi","Matteo","Mazzini","5:30.0"]
[null,41,"Blondi","Andrea","Bartolena","5:31.0"]
[null,40,"Denaro","Lorenzo","Mazzini","5:32.0"]
[null,42,"Porri ","Dario","Bartolena","5:32.7"]
[null,43,"Rendina","Matteo","Bartolena","5:33.0"]
[null,44,"Cassapieri","Luca","Bartolena","5:33.0"]
[null,45,"Tura","Alessandro","Micali","5:34.0"]
[null,46,"Brogi","Tommaso","Mazzini","5:34.0"]
[null,47,"Lepri","Francesco","Mazzini","5:34.1"]
[null,48,"Bertini","Leonardo","Borsi-Pazzini","5:35.0"]
[null,49,"Arcangeli","Gregorio","Bartolena","5:36.0"]
[null,50,"Bellomo","Tommaso","Bartolena","5:37.0"]
[null,51,"Ghiso","Mattia","Bartolena","5:40.9"]
[null,52,"Salvadorini","Giorgio","Mazzini","5:42.2"]
[null,53,"Noseda","Lorenzo","Micali","5:44.0"]
[null,54,"Bernini","Giulio","Bartolena","5:44.1"]
[null,55,"Picchi","Filippo","Bartolena","5:45.0"]
[null,56,"Nardi","Valerio","Bartolena","5:45.5"]
[null,57,"Ferro","Bledi","Bartolena","5:46.0"]
[null,58,"Martini","Nico","Borsi-Pazzini","5:46.0"]
[null,59,"Fattori","Gianluca","Bartolena","5:46.6"]
[null,60,"Simonetti","Nicola","Micali","5:48.0"]
[null,61,"Torrini","Andrea","Picchi","5:48.0"]
[null,62,"Parri","Edoardo","Picchi","5:48.6"]
[null,63,"Marelli","Luca","Bartolena","5:49.0"]
[null,64,"Giusti","Lorenzo","Bartolena","5:50.0"]
[null,65,"Albieri","Matteo","Borsi-Pazzini","5:51.0"]
[null,66,"Scatteri","Giorgio","Picchi","5:52.0"]
[null,67,"Nigiotti","Federico","Mazzini","5:52.1"]
[null,68,"Forleo","Giorgio","Bartolena","5:52.6"]
[null,69,"Ferrini","Niccolo","Bartolena","5:53.0"]
[null,70,"Grechi","Massimiliano","Bartolena","5:53.0"]
[null,71,"Marziani","Leonardo","Mazzini","5:53.3"]
[null,72,"Forapianti","Nicola","Mazzini","5:54.0"]
[null,73,"Pedani","Alessio","Mazzini","5:54.0"]
[null,74,"Silvestri","Alessio","Bartolena","5:54.4"]
[null,75,"Bianchi","ALessandro","Don Angeli","5:55.0"]
[null,76,"Cozzolini","Giorgio","Picchi","5:55.0"]
[null,77,"Barbini","Anmol","Borsi-Pazzini","5:55.5"]
[null,78,"Gaeta","Giorgio","Bartolena","5:56.0"]
[null,79,"Della Valle","Alessandro","Benedettini","5:56.0"]
[null,80,"Dovicchi","Nicola","Bartolena","5:57.0"]
[null,81,"Moschini","Riccardo","Don Angeli","5:58.0"]
[null,82,"Leoni","Gabriele","Picchi","5:58.0"]
[null,83,"Lucetti","Marco","Bartolena","5:59.0"]
[null,84,"Corti","Alessio","Bartolena","5:59.0"]
[null,85,"Grifasi","Giacomo","Borsi-Pazzini","5:59.1"]
[null,86,"Niccolai","Leonardo","Bartolena","6:00.0"]
[null,87,"Ciccinelli","Federico","Picchi","6:00.0"]
[null,88,"Zazzetta","Mattia","Picchi","6:01.0"]
[null,89,"Mauriello","Gabriele","Borsi-Pazzini","6:01.2"]
[null,90,"Benetti","Alessandro","Bartolena","6:02.1"]
[null,91,"Malossi","Tommaso","Mazzini","6:03.2"]
[null,92,"Cecchini","Giorgio","Micali","6:03.3"]
[null,93,"Casabona","Matteo","Bartolena","6:04.3"]
[null,94,"Giannola","ALessandro","Micali","6:04.4"]
[null,95,"Ferraro","Damiano","Micali","6:05.0"]
[null,96,"Artuso","Andrea","Micali","6:05.4"]
[null,97,"Valentini","Samuele","Borsi-Pazzini","6:06.1"]
[null,98,"Mannucci","Filippo","Picchi","6:06.5"]
[null,99,"Lupi","Tommaso","Bartolena","6:07.2"]
[null,100,"Capolicchio","Pietro","Picchi","6:07.6"]
[null,101,"Ciulli","Leonardo","Mazzini","6:07.8"]
[null,102,"Esposito","Fabio","Bartolena","6:07.9"]
[null,103,"Baldoni","Gianfranco","Bartolena","6:08.8"]
[null,104,"Fulceri","Andrea","Picchi","6:09.0"]
[null,105,"Toncelli","Francesco","Bartolena","6:09.1"]
[null,106,"Sargenti","Andrea","Bartolena","6:10.0"]
[null,107,"Randazzo","Vito","Picchi","6:10.9"]
[null,108,"D'alessio","Gianluca","Bartolena","6:12.0"]
[null,109,"Semboloni","Edoardo","Bartolena","6:12.1"]
[null,110,"Pucciani","Giulio","Picchi","6:12.9"]
[null,111,"Pettirossi","Tiziano","Borsi-Pazzini","6:13.2"]
[null,112,"Ceccanti","Lorenzo","Mazzini","6:13.9"]
[null,113,"Corradini","Matteo","Mazzini","6:14.1"]
[null,114,"Loza Araya","Leo","Bartolena","6:14.2"]
[null,115,"Gabrielli","Lorenzo","Don Angeli","6:16.0"]
[null,116,"Pieroni","Marco","Borsi-Pazzini","6:17.1"]
[null,117,"Salvini","Filippo","Bartolena","6:17.8"]
[null,118,"Fabbri","Osvaldo","Bartolena","6:18.2"]
[null,119,"Vivaldi","Luca","Mazzini","6:20.5"]
[null,120,"Martiniano ","Jonathan","Mazzini","6:28.5"]
[null,121,"Garzelli","Matteo","Micali","6:30.0"]
[null,122,"Mori","Marco","Picchi","6:30.1"]
[null,123,"Ciriello","Pietro","Bartolena","6:31.3"]
[null,124,"Rofi","Francesco","Mazzini","6:33.5"]
[null,125,"Nardi","Marco","Mazzini","6:33.9"]
[null,126,"Provenzali","Diego","Micali","6:40.8"]
[null,127,"Birindelli","Tommaso","Mazzini","6:42.5"]
[null,128,"Andreotti","Francesco","Picchi","6:43.0"]
[null,129,"Pelis","Alessandro","Picchi","6:43.2"]
[null,130,"Failli","Tommaso","Micali","6:43.3"]
[null,131,"Ceccherini","Giorgio","Mazzini","6:44.9"]
[null,132,"Franchini","Enea","Bartolena","6:45.6"]
[null,133,"Niccolai","Filippo","Benedettini","6:46.1"]
[null,134,"Pagani","Kevin","Micali","6:47.2"]
[null,135,"Leonardini","Marco","Picchi","6:47.9"]
[null,136,"Biagiotti","Matteo","Bartolena","6:49.8"]
[null,137,"De Luca","Lorenzo","Picchi","6:50.0"]
[null,138,"Filippi","Leonardo","Bartolena","6:51.0"]
[null,139,"Gori","Alberto","Bartolena","6:52.1"]
[null,140,"Maggio","Alessandro","Bartolena","6:52.5"]
[null,141,"Castellani","Matteo","Picchi","6:54.1"]
[null,142,"Bastiani","Filippo","Micali","6:54.2"]
[null,143,"Salvadorini","Simone","Mazzini","6:56.3"]
[null,144,"Giuntini","Federico","Mazzini","6:56.6"]
[null,{"$f":"B156+1","v":145},"Tarquini","Tommaso","Micali","6:59.4"]
[null,{"$f":"B157+1","v":146},"Sheshi","Davide","Borsi-Pazzini","7:01.1"]
[null,147,"Gorppi","Leonardo","Bartolena","7:07.2"]
[null,148,"Grassi","Mirko","Picchi","7:10.6"]
[null,149,"D'aquino","Filippo","Bartolena","7:11.0"]
[null,150,"Burlacchini","Edoardo","Bartolena","7:15.5"]
[null,151,"Bini","Daniel","Mazzini","7:21.8"]
[null,152,"Melinte","Antonio Pietro","Picchi","7:30.1"]
[null,153,"Celati","Simone","Bartolena","7:36.1"]
[null,154,"Pernisco","Manuel","Bartolena","7:37.6"]
[null,155,"Casula","Christian","Picchi","7:42.7"]
[null,156,"Lazzerini","Elia","Picchi","7:42.8"]
[null,157,"Ulivieri","Simone","Borsi-Pazzini","7:49.6"]
[null,158,"Petrini","Riccardo","Mazzini","7:57.2"]
[null,159,"Migliozzi","Alex","Mazzini","7:59.0"]
[null,160,"Zocchi ","Federico","Micali","7:59.3"]
[null,161,"Zenone","Vito","Picchi","8:03.1"]

{"sheet":"FEMMINE 2007","index":4,"n_rows":138,"n_cols":6,"rows_kept":138,"cut":false,"hidden":false,"merged":[]}
[null,null,null,"HOME"]
[]
[null,null,"25.a edizione"]
[null,null,"    \"CAMPESTRE SCUOLA MARATONA\""]
[null,null,"      18° TROFEO CHRISTIAN BARTOLI"]
[null,null,"LIVORNO - CAMPO SCUOLA \"R. MARTELLI\"  -   9 NOVEMBRE 2019"]
[null,null,"ORGANIZZAZIONE: A.S.D. Livornomarathon e Atletica Livorno"]
[]
[null,null,"RISULTATI"]
[]
[null,null,"FEMMINE NATE 2007 (M. 1000)"]
[null,"cl.","Cognome","Nome","Istituto","Tempo"]
[null,1,"Silvestri","Gaia","Bartolena","4:03.8"]
[null,2,"De Santis","Anna lucia","Bartolena","4:05.6"]
[null,3,"Del Moro","Sofia","Micali","4:08.1"]
[null,4,"Porciatti","Mia","Micali","4:10.9"]
[null,5,"Giroldini","Martina","Borsi-Pazzini","4:22.7"]
[null,6,"Feroce","Margherita","Micali","4:24.8"]
[null,7,"Bertini","Gilda","Micali","4:26.3"]
[null,8,"Pieri","Emma","Bartolena","4:28.3"]
[null,9,"Occhini","Melissa","Mazzini","4:29.3"]
[null,10,"Giovannetti","Sofia","Bartolena","4:29.5"]
[null,11,"Bertoneri","Anna ","Bartolena","4:30.0"]
[null,12,"Troffa","Letizia","Mazzini","4:30.0"]
[null,13,"Gazzetta","Carlotta","Picchi","4:31.0"]
[null,14,"Barsotti","Merien","Bartolena","4:31.0"]
[null,15,"Domenici","Valeria","Micali","4:32.0"]
[null,16,"Bisordi","Gaia","Bartolena","4:32.3"]
[null,17,"Marasco","Alessandra","Bartolena","4:33.0"]
[null,18,"Boncompagni","Sara","Mazzini","4:34.0"]
[null,19,"Amore Bianco","Anna","Bartolena","4:34.4"]
[null,20,"Simonini","Anita","Mazzini","4:35.0"]
[null,21,"Andolfi","Greta","Mazzini","4:35.6"]
[null,22,"Giovannetti","Alice","Bartolena","4:36.0"]
[null,23,"Attucci","Nicoletta","Bartolena","4:37.7"]
[null,24,"Mannucci","Giulia","Bartolena","4:39.7"]
[null,25,"Demi","Matilde","Micali","4:41.8"]
[null,26,"Tedeschi","Carlotta","Micali","4:42.0"]
[null,27,"Monteleone","Agata","Bartolena","4:43.0"]
[null,28,"Violi","Marta","Mazzini","4:44.7"]
[null,29,"Notaristefano","Micaela","Don Angeli","4:44.8"]
[null,30,"Pietracaprina","Matilde","Bartolena","4:47.1"]
[null,31,"Antonelli","Aurora","Bartolena","4:49.0"]
[null,32,"Cavassini","Aurora","Mazzini","4:50.0"]
[null,33,"Ligas","Greta","Mazzini","4:50.9"]
[null,34,"Bastone","Eleonora","Bartolena","4:51.0"]
[null,35,"Arrighini","Sabrina","Bartolena","4:51.0"]
[null,36,"Spagnuolo","Marta","Bartolena","4:52.0"]
[null,37,"Sarri","Sofia","Bartolena","4:53.0"]
[null,38,"Taddei","Elena","Borsi-Pazzini","4:55.4"]
[null,39,"Gennai","Viola","Bartolena","4:55.5"]
[null,40,"Antonelli","Martina","Borsi-Pazzini","4:57.7"]
[null,41,"Urgias","Lisa","Bartolena","4:58.5"]
[null,42,"Della Vida","Virginia","Borsi-Pazzini","5:00.0"]
[null,43,"Crimella","Martina","Bartolena","5:00.0"]
[null,44,"Campioni","Marta","Mazzini","5:01.6"]
[null,45,"Menicucci","Matilde","Picchi","5:04.0"]
[null,47,"Mignoni","Gaia","Bartolena","5:05.0"]
[null,46,"Breschi","Marta","Mazzini","5:06.1"]
[null,48,"Ceccotti","Maria Francesca","Micali","5:07.4"]
[null,49,"Spinelli","Matilde","Bartolena","5:08.2"]
[null,50,"Valoroso","Laura","Bartolena","5:09.0"]
[null,51,"Sardi","Gemma","Bartolena","5:09.0"]
[null,52,"Cappelli","Martina","Micali","5:09.9"]
[null,53,"Tezza","Matilde","Bartolena","5:10.0"]
[null,54,"Quilici","Giulia","Bartolena","5:10.1"]
[null,55,"Roccella","Annalisa","Bartolena","5:11.2"]
[null,56,"Bertini","Ester","Micali","5:12.3"]
[null,58,"Diamanti","Gaia","Mazzini","5:13.4"]
[null,57,"Bianchi","Noemi","Picchi","5:14.5"]
[null,59,"Barbieri","Wanda","Bartolena","5:15.0"]
[null,60,"Dematola","Lisa","Picchi","5:15.6"]
[null,61,"Palazzetti","Francesca","Picchi","5:16.5"]
[null,62,"Voltan","Melissa","Mazzini","5:17.0"]
[null,63,"Pancrazi","Sara","Bartolena","5:17.6"]
[null,64,"Fantetti","Federica","Mazzini","5:18.0"]
[null,65,"Lago","Giorgia","Bartolena","5:18.0"]
[null,66,"Cecconi","Margherita","Mazzini","5:20.9"]
[null,67,"Panciatici","Bianca","Mazzini","5:21.0"]
[null,68,"Fecchi","Claudia","Mazzini","5:22.0"]
[null,69,"Cavallo","Simona","Bartolena","5:22.2"]
[null,70,"Valtriani","Caterina","Bartolena","5:23.0"]
[null,71,"Mazzoni","Linda","Mazzini","5:23.9"]
[null,72,"Parentini","Ginevra","Mazzini","5:25.0"]
[null,73,"Pritelli","Veronica","Micali","5:26.1"]
[null,74,"Amore ","Elorianna","Bartolena","5:27.0"]
[null,75,"Aquino","Giulia","Bartolena","5:27.2"]
[null,76,"Borriello","Elisa","Borsi-Pazzini","5:28.0"]
[null,77,"Mascagni","Carolina","Mazzini","5:28.1"]
[null,79,"Falossi","Chiara","Mazzini","5:29.0"]
[null,78,"Traversi","Olga","Bartolena","5:29.5"]
[null,80,"Gracci","Noemi","Picchi","5:30.0"]
[null,81,"Tognetti","Anna Chiara","Micali","5:30.1"]
[null,82,"Gabiccini","Silvia","Bartolena","5:30.9"]
[null,83,"Tomasucci","Denise","Picchi","5:32.1"]
[null,84,"Cigliano","Elena","Micali","5:32.9"]
[null,85,"Marconi","Rachele","Micali","5:34.0"]
[null,86,"Scala","Olga","Bartolena","5:34.2"]
[null,87,"Zarcone","Marina","Mazzini","5:35.1"]
[null,88,"Puccini","Vittoria","Micali","5:35.5"]
[null,89,"D'echabur","Vittoria","Bartolena","5:36.0"]
[null,90,"Becherucci","Chiara","Mazzini","5:37.4"]
[null,91,"Mirani","Maria Gioia","Bartolena","5:37.5"]
[null,92,"Taddei","Emma","Bartolena","5:38.0"]
[null,93,"Falcinelli","Gaia","Borsi-Pazzini","5:38.3"]
[null,94,"Bernini","Asia","Bartolena","5:39.7"]
[null,95,"Manca","Anna","Bartolena","5:40.0"]
[null,96,"Perini","Sofia","Bartolena","5:40.1"]
[null,97,"Scotto","Chiara","Borsi-Pazzini","5:43.9"]
[null,98,"Cambini","Carlotta","Micali","5:45.9"]
[null,99,"Agomah","Vittoria","Borsi-Pazzini","5:48.2"]
[null,100,"Leonardi","Linda","Borsi-Pazzini","5:49.0"]
[null,101,"Hima","Erisa","Bolognesi","5:49.0"]
[null,102,"Ferretti","Emma","Bolognesi","5:55.5"]
[null,103,"Battaglia","Carolina","Bartolena","5:59.1"]
[null,104,"Baroni","Melissa","Bartolena","6:09.1"]
[null,{"$f":"B116+1","v":105},"Franchini","Giulia","Mazzini","6:14.3"]
[null,{"$f":"B117+1","v":106},"Pellegrino","Bianca","Borsi-Pazzini","6:15.1"]
[null,107,"Spadoni","Linda","Micali","6:18.3"]
[null,108,"Lubrani","Rachele","Mazzini","6:22.1"]
[null,109,"Pistoia","Giulia","Borsi-Pazzini","6:30.7"]
[null,110,"Sgueglia","Irene","Bartolena","6:37.1"]
[null,111,"Di Paco","Caterina","Don Angeli","6:37.2"]
[null,112,"Guidi","Martina","Don Angeli","6:43.1"]
[null,113,"Alba","Lidia","Mazzini","6:43.6"]
[null,114,"Querci","Sofia","Bartolena","6:49.9"]
[null,115,"Casolini","Viola","Picchi","7:05.5"]
[null,116,"Bertolina","Terra","Micali","7:08.0"]
[null,117,"Loconte","Bianca","Picchi","7:09.0"]
[null,118,"Badjewa","Nicole ","Picchi","7:11.7"]
[null,119,"Di Nardo","Delia","Picchi","7:25.5"]
[null,120,"Vanni","Caterina","Picchi","7:28.7"]
[null,121,"Bruni","Francesca","Picchi","7:30.0"]
[null,122,"Stagni","Nereida","Bartolena","7:31.0"]
[null,123,"Tani","Carolina","Bartolena","7:33.0"]
[null,124,"Simonini","Matilde","Mazzini","7:36.0"]
[null,125,"Mascagni","Giorgia","Mazzini","7:37.6"]
[null,126,"Estrada","Alniyah","Borsi-Pazzini","8:36.0"]

{"sheet":"MASCHI 2008","index":5,"n_rows":286,"n_cols":6,"rows_kept":286,"cut":false,"hidden":false,"merged":[]}
[null,null,null,"HOME"]
[]
[null,null,"25.a edizione"]
[null,null,"    \"CAMPESTRE SCUOLA MARATONA\""]
[null,null,"      18° TROFEO CHRISTIAN BARTOLI"]
[null,null,"LIVORNO - CAMPO SCUOLA \"R. MARTELLI\"  -   9 NOVEMBRE 2019"]
[null,null,"ORGANIZZAZIONE: A.S.D. Livornomarathon e Atletica Livorno"]
[]
[null,null,"RISULTATI"]
[]
[null,null,"MASCHI NATI 2008 (M. 1000)"]
[null,"cl.","Cognome","Nome","Istituto","Tempo"]
[null,1,"Samaritani","Matteo","Micali","3:56.2"]
[null,2,"Quochi","Matteo","Bartolena","3:57.6"]
[null,3,"Gri","Davide","Bartolena","3:58.0"]
[null,4,"Mazzoli","Nicola","Don Angeli","3:58.3"]
[null,5,"Turini","Matteo","Picchi","4:01.8"]
[null,6,"Baiocchi","Andrea","Bartolena","4:02.9"]
[null,7,"Casini","Jacopo","Micali","4:08.0"]
[null,8,"Chicca","Nicolas","Picchi","4:08.5"]
[null,9,"Magistro","Marco","Picchi","4:08.9"]
[null,10,"Bianchi","Gabriele","Don Angeli","4:10.9"]
[null,11,"Sciacol","Jacopo","Micali","4:11.8"]
[null,12,"Manetti","Lorenzo","Bartolena","4:13.8"]
[null,13,"Borghini","Giorgio","Bartolena","4:14.1"]
[null,14,"Renieri","Zeno","Bartolena","4:15.3"]
[null,15,"Santucci","Daniele","Borsi-Pazzini","4:16.4"]
[null,16,"Gori","Edoardo","Micali","4:17.8"]
[null,17,"Riva","Lorenzo","Micali","4:18.7"]
[null,18,"Crea","Tommaso","Micali","4:19.0"]
[null,19,"Sormani","Matteo","Borsi-Pazzini","4:19.8"]
[null,20,"Ricciardi","Ernesto","Micali","4:20.1"]
[null,21,"Falleri","Alessandro","Borsi-Pazzini","4:21.6"]
[null,22,"Domenici","Andrea","Bartolena","4:22.0"]
[null,23,"Trifiletti","Dario","Bartolena","4:23.0"]
[null,24,"Salvadori","Lorenzo","Mazzini","4:23.1"]
[null,25,"Luschi","Dante","Bartolena","4:24.0"]
[null,26,"Rinaldi","Alessio","Picchi","4:24.0"]
[null,27,"Melucci","Martino","Bartolena","4:24.5"]
[null,28,"Banti","Samuele","Picchi","4:25.0"]
[null,29,"Tonini","Giacomo","Micali","4:25.5"]
[null,30,"Tedeschi","Mattia","Bartolena","4:25.9"]
[null,31,"Dovicchi","Lorenzo","Bartolena","4:25.9"]
[null,32,"Bonelli","Francesco","Don Angeli","4:26.0"]
[null,33,"Raffo","Davide Carlo","Mazzini","4:26.0"]
[null,34,"Dominici","Thomas","Bolognesi","4:26.0"]
[null,35,"Chiarini","Cristian","Bartolena","4:27.0"]
[null,36,"Sargenti","Gianmaria","Borsi-Pazzini","4:27.0"]
[null,37,"Ceccherini","Giorgio","Mazzini","4:27.0"]
[null,38,"Montapponi","Leonardo","Borsi-Pazzini","4:28.0"]
[null,39,"Poli","Lorenzo","Mazzini","4:29.0"]
[null,40,"Baroni","Davide","Bartolena","4:30.0"]
[null,41,"Tiradritti","Nicola","Borsi-Pazzini","4:30.0"]
[null,42,"Souda","Ilyas","Don Angeli","4:31.0"]
[null,43,"Romano","Aldo","Bartolena","4:31.3"]
[null,44,"Agwabiri","Hilary","Don Angeli","4:32.0"]
[null,45,"Mainardi","Alessandro","Bartolena","4:32.0"]
[null,46,"Mainardi","Federico","Bartolena","4:33.0"]
[null,47,"Roggi","Lorenzo","Bartolena","4:33.2"]
[null,48,"Farulli","Giacomo","Micali","4:33.3"]
[null,49,"Pratesi","Giacomo","Bartolena","4:34.0"]
[null,50,"Guastalla","Leonardo","Micali","4:34.0"]
[null,51,"Lo Coco","Leonardo","Bartolena","4:34.0"]
[null,52,"D'achille","Danny","Mazzini","4:34.4"]
[null,53,"Nesti","Leonardo","Micali","4:35.0"]
[null,54,"Pervan","Nicola","Don Angeli","4:36.0"]
[null,55,"Amedei","Matteo","Borsi-Pazzini","4:36.3"]
[null,57,"Moussaif","Rida","Don Angeli","4:37.0"]
[null,56,"Franchi","Marco","Micali","4:37.0"]
[null,58,"Fornai","Samuele","Mazzini","4:37.7"]
[null,59,"Mazzia","Matteo","Bartolena","4:38.0"]
[null,60,"Guidi","Lorenzo","Mazzini","4:38.0"]
[null,61,"Cantini","Cesare","Mazzini","4:38.9"]
[null,62,"Santagata","Piertro","Borsi-Pazzini","4:39.0"]
[null,63,"Vivarelli","Giorgio","Bartolena","4:40.0"]
[null,64,"Panattoni","Andrea","Bartolena","4:40.7"]
[null,65,"Lepri","Leonardo","Benedettini","4:41.0"]
[null,66,"Sardelli","Sebastiano","Bartolena","4:42.0"]
[null,67,"Vitiello","Francesco","Mazzini","4:42.0"]
[null,68,"Varrone","Giancarlo","Bartolena","4:42.4"]
[null,69,"Branchetti","Valerio","Don Angeli","4:43.0"]
[null,70,"Sofia","Manuele","Bartolena","4:43.2"]
[null,71,"Toni","Francesco","Bartolena","4:43.6"]
[null,72,"Galatolo","Nicola","Don Angeli","4:44.0"]
[null,73,"Schiano","Diego","Picchi","4:44.0"]
[null,74,"Isozio","Cristian","Benedettini","4:45.0"]
[null,75,"Kevin","Sabli","Picchi","4:45.0"]
[null,76,"Pizzi","Alberto","Bartolena","4:45.1"]
[null,77,"Marchi","Mattia","Mazzini","4:45.3"]
[null,78,"Tocchini","Edoardo","Benedettini","4:46.0"]
[null,79,"Felicetti","Michele","Micali","4:46.0"]
[null,80,"Moriani","Niccolò","Picchi","4:46.0"]
[null,81,"Pratesi","Giacomo","Bartolena","4:46.0"]
[null,82,"Orlandi","Matteo","Mazzini","4:47.0"]
[null,84,"Gazzarrini","Luca","Don Angeli","4:47.0"]
[null,83,"Vivaldi","Davide","Bartolena","4:47.5"]
[null,85,"Ubaldi","Giacomo","Bartolena","4:48.0"]
[null,86,"Martino","Lorenzo","Bartolena","4:48.5"]
[null,87,"Borchi","Edoardo","Mazzini","4:49.0"]
[null,88,"D'angelo","Alessandro","Bartolena","4:49.2"]
[null,89,"Finocchiaro","Alberto","Bartolena","4:49.6"]
[null,90,"Cuomo","Lorenzo","Picchi","4:50.0"]
[null,91,"De Lucia","Giuseppe","Borsi-Pazzini","4:50.0"]
[null,92,"Arnaldi","Dario","Don Angeli","4:50.0"]
[null,93,"Razzauti","Filippo","Bartolena","4:50.6"]
[null,94,"Vecchio","Andrea","Bartolena","4:51.0"]
[null,95,"Olivola","Edoardo","Picchi","4:52.0"]
[null,96,"Barile","Iacopo","Mazzini","4:52.0"]
[null,97,"Falleni","Diego","Don Angeli","4:52.1"]
[null,98,"Cedolini","Edoardo","Borsi-Pazzini","4:52.2"]
[null,99,"Graessel","Gianmarco","Bartolena","4:53.0"]
[null,100,"Guantini","Francesco","Micali","4:53.3"]
[null,101,"Balice","Matteo","Mazzini","4:54.0"]
[null,102,"Rapezzi","Matteo","Mazzini","4:54.0"]
[null,103,"Cystri","Leonardo","Benedettini","4:54.0"]
[null,104,"Vatteroni","Filippo","Bartolena","4:54.5"]
[null,105,"Bello ","Michele","Bartolena","4:55.0"]
[null,106,"Corsi","Federico","Bartolena","4:55.0"]
[null,107,"Raigi","Francesco","Mazzini","4:55.0"]
[null,108,"Balleri","Leonardo","Benedettini","4:55.0"]
[null,109,"Sponziello","Tommaso","Bartolena","4:56.0"]
[null,110,"Bonsignori","Andrea","Bartolena","4:56.1"]
[null,111,"Sola","Antonio ","Bartolena","4:56.8"]
[null,112,"Nannetti","Edoardo","Mazzini","4:57.0"]
[null,113,"Occhini","Manuel Noah",null,"4:58.0"]
[null,114,"Taverna","Dario","Benedettini","4:58.0"]
[null,115,"Verucci","Giulio","Borsi-Pazzini","4:58.1"]
[null,116,"Braccini","Edoardo","Bartolena","4:58.8"]
[null,117,"Spiller","Tommaso","Borsi-Pazzini","4:59.0"]
[null,118,"Neri","Francesco","Bartolena","4:59.0"]
[null,119,"Cassarino","Dario","Borsi-Pazzini","4:59.0"]
[null,120,"Picchi","Matteo","Maria Ausiliatrice","5:00.0"]
[null,121,"Cima","Matteo","Micali","5:00.0"]
[null,122,"Cappagli ","Lorenzo","Borsi-Pazzini","5:01.0"]
[null,123,"Bartolini","Mattia","Benedettini","5:01.1"]
[null,124,"Cavallini","Andrea","Bartolena","5:02.0"]
[null,125,"Del Bianco","Luca","Micali","5:02.3"]
[null,126,"Scardino","Matteo","Borsi-Pazzini","5:02.8"]
[null,127,"Pavesi","Rocco","Bartolena","5:03.5"]
[null,128,"Ciompi","Tommaso","Bartolena","5:04.7"]
[null,129,"Di Tora","Davide","Mazzini","5:05.5"]
[null,130,"Burchielli","Leonardo","Mazzini","5:05.7"]
[null,131,"Guantini","Rocco","Bartolena","5:05.9"]
[null,132,"Mustari","Alessandro","Bartolena","5:06.0"]
[null,133,"Busoni","Nicola","Mazzini","5:07.0"]
[null,134,"Marchetti","Tommaso","Benedettini","5:07.2"]
[null,135,"Sellai","Shadi","Borsi-Pazzini","5:08.0"]
[null,136,"Mezzasalma","Massimo","Benedettini","5:08.4"]
[null,137,"Sangiacomo","Marco","Bartolena","5:08.9"]
[null,138,"Farinella","Paolo","Bartolena","5:09.0"]
[null,139,"Paoletti","Federico","Mazzini","5:09.0"]
[null,140,"Cavallini","Leonardo","Don Angeli","5:09.3"]
[null,141,"Ulivieri","Davide","Mazzini","5:09.9"]
[null,142,"Lucido","Daniele","Bolognesi","5:10.0"]
[null,143,"Leonardi","Niccolò","Bartolena","5:10.1"]
[null,144,"Diana","Gregorio","Bartolena","5:11.0"]
[null,145,"Germani","Alessandro","Bartolena","5:12.5"]
[null,146,"Maglione","Tommaso","Borsi-Pazzini","5:12.6"]
[null,147,"Porciatti","Lamberto","Bartolena","5:12.9"]
[null,148,"Taddei","Giordano","Mazzini","5:13.0"]
[null,149,"De Gregorio","Tommaso","Bartolena","5:13.0"]
[null,150,"Rinaldi","Riccardo","Mazzini","5:13.1"]
[null,151,"Leozappa","Luca","Picchi","5:14.0"]
[null,152,"Ponzio","Gregorio","Bartolena","5:14.2"]
[null,153,"Busti","Andrea","Picchi","5:15.9"]
[null,154,"Sanguineti","Davide","Picchi","5:16.0"]
[null,155,"Moroni","Davide","Mazzini","5:16.1"]
[null,156,"Bardi","Daniele","Bartolena","5:16.3"]
[null,157,"Parenti","Matteo","Mazzini","5:17.1"]
[null,158,"Pugliesi","Thomas","Benedettini","5:17.2"]
[null,159,"Belazar","Amir","Mazzini","5:17.9"]
[null,160,"Marinari","Simone","Mazzini","5:17.9"]
[null,161,"Perondi","Gregory","Mazzini","5:18.4"]
[null,162,"Braun","Giulio","Bartolena","5:19.6"]
[null,163,"Castagnoli","Nicola","Mazzini","5:19.8"]
[null,164,"Petracchi","Tommaso","Don Angeli","5:20.2"]
[null,165,"Neri","PieLuigi","Bartolena","5:20.8"]
[null,166,"Nicolardi","Francesco","Borsi-Pazzini","5:21.0"]
[null,167,"Bernardi","Nicola","Bartolena","5:21.0"]
[null,168,"Giuffrida","Samuele","Mazzini","5:22.2"]
[null,169,"Gennari","Raffaele","Mazzini","5:23.5"]
[null,170,"Gambacciani","Gabriele","Picchi","5:24.4"]
[null,171,"Schiano","Gabriele","Mazzini","5:24.8"]
[null,172,"Quartararo","Alessandro","Bartolena","5:25.1"]
[null,173,"Citti","Leonardo","Bartolena","5:25.5"]
[null,174,"Macaluso","Matteo","Mazzini","5:25.5"]
[null,175,"Pelletti","Alessio","Mazzini","5:26.0"]
[null,176,"Costabile","Francesco","Picchi","5:26.3"]
[null,177,"Boninti","Jacopo","Bartolena","5:27.0"]
[null,178,"Lazzerini Denchi","Leonardo","Micali","5:27.1"]
[null,179,"Mangia","Tommaso","Borsi-Pazzini","5:27.1"]
[null,180,"Rinaldi"," Niccolò","Mazzini","5:27.9"]
[null,181,"Carrese","Tommaso","Bartolena","5:28.3"]
[null,182,"Sivieri","Lorenzo","Benedettini","5:30.1"]
[null,183,"Orsi","Diego","Bartolena","5:30.9"]
[null,184,"Varalli","Luca","Bartolena","5:30.9"]
[null,185,"Niccolai","Giorgio","Mazzini","5:33.0"]
[null,186,"Muco","Sherif","Borsi-Pazzini","5:33.8"]
[null,187,"Pacchiani","Giovanni","Borsi-Pazzini","5:34.9"]
[null,188,"Becchere","Dario","Bartolena","5:35.3"]
[null,189,"Valentini","Cristiano","Don Angeli","5:35.8"]
[null,190,"Bernini","Enea","Mazzini","5:36.4"]
[null,191,"Cozzani","Dario","Picchi","5:37.0"]
[null,192,"Renucci","Nicola","Mazzini","5:38.2"]
[null,193,"Madera","Marco","Borsi-Pazzini","5:39.2"]
[null,194,"Gallo","Alessandro","Don Angeli","5:39.6"]
[null,195,"Pagano","Antonio Maria","Bartolena","5:41.4"]
[null,196,"Tramonti","Massimo","Mazzini","5:41.8"]
[null,197,"Caggiano","Marco","Bartolena","5:42.0"]
[null,198,"Di Girolamo Vitolo","Riccardo","Bartolena","5:42.3"]
[null,199,"Marga","Daniele","Borsi-Pazzini","5:43.0"]
[null,200,"Bayirami","Michael","Mazzini","5:44.2"]
[null,201,"Masset","Manolo","Bartolena","5:45.6"]
[null,202,"Vitiello","Andrea","Picchi","5:46.8"]
[null,203,"Di Rosa","Diego","Mazzini","5:47.1"]
[null,204,"Teghini","Lorenzo","Picchi","5:47.1"]
[null,205,"Adorni","Filippo","Mazzini","5:48.3"]
[null,206,"Sardi","Riccardo","Bartolena","5:49.3"]
[null,207,"Chellini","Mattia","Don Angeli","5:50.5"]
[null,208,"Casini","Gabriele","Mazzini","5:52.2"]
[null,209,"Maltinti","Niccolò","Mazzini","5:52.8"]
[null,210,"Del Nista","Luca","Bartolena","5:52.8"]
[null,211,"Ghenea","Mario","Mazzini","5:53.5"]
[null,212,"Novelli","Paolo","Bartolena","5:54.5"]
[null,213,"Corti ","Tommaso","Bartolena","5:57.7"]
[null,214,"Crestani","Matteo","Mazzini","5:58.7"]
[null,215,"Puccini","Luca","Bartolena","5:59.1"]
[null,216,"Terreni","Andrea","Picchi","5:59.9"]
[null,217,"Bacci","Leonardo","Maria Ausiliatrice","6:00.0"]
[null,218,"Quercioli","Francesco","Bartolena","6:01.3"]
[null,219,"Ribecai","Simone","Mazzini","6:02.0"]
[null,220,"Nesi","Gabriele","Bartolena","6:10.8"]
[null,221,"Pompilio","Gabriele","Borsi-Pazzini","6:11.0"]
[null,222,"Fabbri","Leonardo","Mazzini","6:15.1"]
[null,223,"Batini","Tommaso","Bartolena","6:16.9"]
[null,224,"Moscatiello","Emanuele","Bartolena","6:17.0"]
[null,225,"Ramarony","Davide","Picchi","6:18.2"]
[null,226,"Galleni","Riccardo","Micali","6:19.4"]
[null,227,"De Martino ","Davide","Mazzini","6:20.6"]
[null,228,"Tavanti","Edoardo","Bartolena","6:21.0"]
[null,229,"Soldati","Dario","Bartolena","6:22.3"]
[null,230,"Cecchi","Gabriele","Bartolena","6:22.7"]
[null,{"$f":"B242+1","v":231},"Donpè","Vittorio","Santo Spirito","6:27.1"]
[null,{"$f":"B243+1","v":232},"Grasso ","Matteo","Borsi-Pazzini","6:27.5"]
[null,233,"Taddei"," Leonardo","Mazzini","6:30.8"]
[null,234,"Bardi","Tommaso","Bartolena","6:32.0"]
[null,235,"Colombini","Dario","Bartolena","6:33.1"]
[null,236,"Ortiz Negri","Isaac luca","Bartolena","6:34.0"]
[null,237,"Dattola","Nicola","Bartolena","6:43.6"]
[null,238,"De Martini","Lorenzo","Benedettini","6:45.5"]
[null,239,"Dalleluche","Francesco","Mazzini","6:47.7"]
[null,240,"Lugli","Giacomo","Mazzini","6:48.0"]
[null,241,"Tedeschi","Tommaso","Don Angeli","6:48.3"]
[null,242,"Morelli","Davide","Bartolena","6:49.6"]
[null,243,"Cicorelli","Daniele","Bartolena","6:51.2"]
[null,244,"Cordoba","Geremia","Mazzini","6:53.9"]
[null,245,"Tarantino","Matteo","Picchi","6:54.0"]
[null,246,"Sanna","Leonardo","Mazzini","6:55.1"]
[null,247,"Di Blasi","Alessio","Bartolena","6:56.0"]
[null,248,"Bertelli","Manuel","Picchi","6:56.6"]
[null,249,"Marnilengo","Gabriel","Borsi-Pazzini","6:58.1"]
[null,250,"Romano","Luigi","Micali","7:01.6"]
[null,251,"Rinaldi","Alessandro","Mazzini","7:02.0"]
[null,252,"Franchini","Dario","Picchi","7:02.5"]
[null,253,"Genovesi","Tommaso","Micali","7:03.0"]
[null,254,"Repetti","Samuele","Picchi","7:03.6"]
[null,255,"Tenerello","Dario","Picchi","7:03.8"]
[null,256,"Bertelli","Denis","Picchi","7:04.0"]
[null,257,"Di Pietro","Leonardo","Picchi","7:05.0"]
[null,258,"Cirenei","Federico","Micali","7:05.2"]
[null,259,"Belloni","Diego","Bartolena","7:06.0"]
[null,260,"Biondi","Gioele","Picchi","7:07.0"]
[null,261,"Di Blasi ","Matteo","Bartolena","7:07.2"]
[null,262,"Santoro","Matteo","Mazzini","7:27.2"]
[null,263,"Molina","Andrea","Borsi-Pazzini","7:41.0"]
[null,264,"Pisano","Christian","Bartolena","7:49.6"]
[null,265,"Marsini","Marco","Mazzini","7:53.0"]
[null,266,"Biasci","Michele","Borsi-Pazzini","7:53.8"]
[null,267,"Maltinti","Leonardo","Bartolena","7:54.0"]
[null,268,"Falaschi","Tommaso","Borsi-Pazzini","7:54.5"]
[null,269,"Guadagnoli","Giorgio","Borsi-Pazzini","7:55.0"]
[null,270,"Di Maio","Filippo","Bartolena","7:57.2"]
[null,271,"Del Greco","Lorenzo","Mazzini","7:58.0"]
[null,272,"Mazzocca","Gabriele","Borsi-Pazzini","7:59.0"]
[null,273,"Luschi","Davide","Bartolena","8:00.0"]
[null,274,"Suligoi","Pietro","Bartolena","8:13.3"]

{"sheet":"FEMMINE 2008","index":6,"n_rows":236,"n_cols":10,"rows_kept":236,"cut":false,"hidden":false,"merged":[]}
[" ",null,null,"HOME"]
[]
[null,null,"25.a edizione"]
[null,null,"    \"CAMPESTRE SCUOLA MARATONA\""]
[null,null,"      18° TROFEO CHRISTIAN BARTOLI"]
[null,null,"LIVORNO - CAMPO SCUOLA \"R. MARTELLI\"  -   9 NOVEMBRE 2019"]
[null,null,"ORGANIZZAZIONE: A.S.D. Livornomarathon e Atletica Livorno"]
[]
[null,null,"RISULTATI"]
[null,null,null,null,null,null,null,null,null,{"$f":"CONCATENATE(MID(I10,1,1),\":\",MID(I10,2,2),\".\",MID(I10,4,1))","v":":."}]
[null,null,"FEMMINE NATE 2008 (M. 1000)"]
[null,"cl.","Cognome","Nome","Istituto","Tempo"]
[null,1,"Fasano","Nicole","Bartolena","4:13.4"]
[null,2,"Calzecchi","Marta","Bartolena","4:32.4"]
[null,3,"Terreni","Giulia","Mazzini","4:35.1"]
[null,4,"Moni","Greta","Borsi-Pazzini","4:35.6"]
[null,5,"Marini","Eva","Bartolena","4:35.9"]
[null,6,"Ruta","Giorgia","Micali","4:37.7"]
[null,7,"Soci","Eva","Borsi-Pazzini","4:38.5"]
[null,8,"La Rocca","Martina","Maria Ausiliatrice","4:39.9"]
[null,9,"Pasquale","Sara","Picchi","4:43.2"]
[null,10,"Malloggi","Bianca","Benedettini","4:43.5"]
[null,11,"Bacci","Vittoria","Don Angeli","4:44.3"]
[null,12,"De Majo","Teresina","Bartolena","4:44.8"]
[null,13,"Martini","Chiara","Borsi-Pazzini","4:45.0"]
[null,14,"Casolaro","Maria","Micali","4:48.5"]
[null,15,"Soro","Margherita","Micali","4:49.0"]
[null,16,"Rendina","Costanza","Bartolena","4:50.4"]
[null,17,"Del Cesta","Giulia","Bartolena","4:51.1"]
[null,18,"Lulli","Anna","Micali","4:53.5"]
[null,19,"Scotti","Carolina","Borsi-Pazzini","4:53.7"]
[null,20,"Rosito","Linda","Bartolena","4:54.1"]
[null,21,"Gigli ","Bianca","Mazzini","4:57.0"]
[null,22,"Garzelli","Vittoria","Micali","4:57.1"]
[null,23,"Miglia","Martina","Picchi","4:58.3"]
[null,24,"Pollice","Chiara","Bartolena","4:58.6"]
[null,25,"Adamo","Valentina","Don Angeli","4:59.3"]
[null,26,"Guideri","Margherita","Maria Ausiliatrice","4:59.9"]
[null,27,"Razzauti","Adele","Bartolena","5:00.0"]
[null,28,"Caruccio","Martina","Bartolena","5:00.6"]
[null,29,"Bianchi","Vittoria","Micali","5:01.0"]
[null,30,"Arlacchi","Emma","Mazzini","5:01.6"]
[null,31,"Sviato","Mattia Mali","Micali","5:02.0"]
[null,32,"Bertini","Arianna","Borsi-Pazzini","5:03.0"]
[null,33,"Pennacchia","Lara","Bartolena","5:03.0"]
[null,34,"Sodani","Sofia","Bartolena","5:03.5"]
[null,35,"Cantagalli","Giulia","Bartolena","5:03.6"]
[null,36,"Rosso","Arianna","Don Angeli","5:04.0"]
[null,37,"Scala","Livia","Bartolena","5:04.0"]
[null,38,"Pireddu","Vittoria","Don Angeli","5:05.1"]
[null,39,"Locatelli","Marta","Bartolena","5:07.0"]
[null,40,"Scotto","Carolina","Maria Ausiliatrice","5:08.0"]
[null,41,"Casarosa","Sara","Benedettini","5:09.0"]
[null,42,"Pellegrini","Camilla","Santo Spirito","5:09.2"]
[null,43,"Del Papa","Giulia","Borsi-Pazzini","5:09.8"]
[null,44,"Brogi","Greta","Bartolena","5:09.9"]
[null,45,"Vannini","Sofia","Micali","5:10.0"]
[null,46,"Cardillo","Sara","Picchi","5:11.0"]
[null,47,"Mainardi","Claudia","Micali","5:11.5"]
[null,48,"Mainardi","Giorgia","Benedettini","5:12.0"]
[null,49,"Lenzi","Anna","Santo Spirito","5:13.2"]
[null,50,"Filippi ","Giulia","Bartolena","5:14.3"]
[null,51,"Antonini","Elisa","Mazzini","5:15.0"]
[null,52,"Mannucci","Maria","Bartolena","5:16.0"]
[null,53,"Guidi ","Vittoria","Micali","5:17.0"]
[null,54,"Pratesi","Alice","Bartolena","5:17.0"]
[null,55,"Lagana","Chiara","Bartolena","5:18.0"]
[null,56,"Ghelarducci","Giulia","Mazzini","5:18.0"]
[null,57,"Falleni","Alessia","Mazzini","5:19.0"]
[null,58,"Sergio","Adele","Borsi-Pazzini","5:19.0"]
[null,59,"Dini","Viola","Picchi","5:19.1"]
[null,60,"Pardossi","Chiara","Bartolena","5:20.0"]
[null,61,"Garzelli","Alessia","Borsi-Pazzini","5:20.7"]
[null,62,"Alviani","Alice","Mazzini","5:21.0"]
[null,63,"Panza","Arianna","Borsi-Pazzini","5:22.0"]
[null,64,"Lascialfari","Alessandra","Bartolena","5:22.1"]
[null,65,"Mura","Anna","Bartolena","5:22.4"]
[null,66,"Scotti","Anita","Mazzini","5:23.2"]
[null,67,"Feri","Anita","Bartolena","5:23.9"]
[null,68,"Ghelarducci","Giorgia","Bartolena","5:24.2"]
[null,69,"Canigiani","Carolina","Bartolena","5:25.0"]
[null,70,"Mainardi","Marta","Micali","5:25.2"]
[null,71,"Bello","Viola","Micali","5:25.9"]
[null,72,"Pelagatti","Chiara","Bartolena","5:26.0"]
[null,73,"Bonucci","Margherita","Bartolena","5:27.0"]
[null,74,"Esposito","Martina","Mazzini","5:27.1"]
[null,75,"Moroni","Vittoria","Micali","5:27.6"]
[null,76,"Schiano","Nadia","Bartolena","5:28.0"]
[null,78,"Palomba","Martina","Bartolena","5:28.6"]
[null,77,"Giordano","Krizia","Bartolena","5:29.0"]
[null,79,"Melosi","Margherita","Picchi","5:29.6"]
[null,80,"Raciti","Emma","Bartolena","5:31.7"]
[null,81,"Bianchi","Ginevra","Bartolena","5:32.0"]
[null,82,"Landi","Arianna","Micali","5:32.7"]
[null,84,"Cicero","Giulia","Micali","5:33.0"]
[null,83,"Bandini","Claudia","Bartolena","5:33.1"]
[null,85,"Bardi","Maddalena","Micali","5:34.0"]
[null,86,"Vicenzini","Martina","Bartolena","5:34.3"]
[null,87,"Valli","Diletta","Picchi","5:35.0"]
[null,88,"Valli","Alessia","Picchi","5:36.0"]
[null,89,"Provenzali","Azzurra","Bartolena","5:36.3"]
[null,90,"Biondi","Sara","Bartolena","5:37.0"]
[null,91,"Vignale","Martina","Micali","5:37.0"]
[null,92,"Corona","Ludovica","Bartolena","5:37.3"]
[null,93,"Mangiantini","Alisia","Bartolena","5:38.0"]
[null,95,"Matteini","Sara","Bartolena","5:39.0"]
[null,96,"Martelli","Melissa","Mazzini","5:39.0"]
[null,97,"Cioce","Lara","Mazzini","5:40.3"]
[null,98,"Porri","Elisa","Bartolena","5:40.9"]
[null,99,"Raciti","Sofia","Bartolena","5:42.3"]
[null,100,"Bertolla","Elisa","Bartolena","5:42.6"]
[null,101,"Guarnieri","Camilla","Mazzini","5:43.0"]
[null,102,"Tinnirello","Vittoria","Picchi","5:43.2"]
[null,103,"Disgraziati","Alessia","Mazzini","5:43.8"]
[null,104,"Iiriti","Linda","Bartolena","5:44.0"]
[null,105,"Prestinari","Giulia","Borsi-Pazzini","5:45.0"]
[null,106,"Trastullo","Irene","Borsi-Pazzini","5:45.6"]
[null,107,"Ergoli","Matilde","Mazzini","5:46.0"]
[null,108,"Rossi","Irene","Bartolena","5:46.2"]
[null,109,"Conti","Martina","Maria Ausiliatrice","5:46.2"]
[null,110,"Genovesi","Alessia","Bartolena","5:47.0"]
[null,111,"Corradini","Martina","Mazzini","5:47.0"]
[null,112,"Tinacci","Clarissa","Mazzini","5:48.0"]
[null,113,"Del Corona","Vittoria","Bartolena","5:48.1"]
[null,114,"Poli","Ilary","Borsi-Pazzini","5:49.0"]
[null,115,"Vigoni","Arianna","Bartolena","5:49.2"]
[null,116,"Boldrini","Nicole","Bartolena","5:49.6"]
[null,117,"Siciliati","Virginia","Picchi","5:49.8"]
[null,118,"Karunanayake","Marzia","Mazzini","5:50.0"]
[null,119,"Porri","Marta","Mazzini","5:51.0"]
[null,120,"Di Paco","Alice","Don Angeli","5:51.7"]
[null,121,"Pistolesi","Marta","Bartolena","5:52.0"]
[null,122,"Campanelli","Elisa","Bartolena","5:54.1"]
[null,123,"Suligoi","Giorgia","Bartolena","5:54.5"]
[null,124,"Del Punta","Erica","Picchi","5:54.9"]
[null,125,"Sordini","Caterina","Borsi-Pazzini","5:55.5"]
[null,126,"Biagetti","Agnese","Benedettini","5:55.6"]
[null,127,"Fantozzi","Alice","Picchi","5:56.0"]
[null,128,"Corsolini","Asia","Bartolena","5:56.0"]
[null,129,"Balleri","Viola","Bartolena","5:57.0"]
[null,130,"Lenzi","Matlde","Picchi","5:57.0"]
[null,131,"Lucioli","Elena","Bartolena","5:58.0"]
[null,132,"Gentile","Aurora","Picchi","5:58.8"]
[null,133,"Checcucci","Silvia","Don Angeli","5:59.0"]
[null,134,"Serratore","Eleonora","Bartolena","6:00.0"]
[null,135,"Del Moro","Eva","Bartolena","6:00.0"]
[null,136,"Granata","Clara","Bartolena","6:01.0"]
[null,137,"Mari","Giulia","Bartolena","6:01.1"]
[null,138,"Domenici","Sara","Bartolena","6:02.0"]
[null,139,"Comelato","Francesca","Bartolena","6:02.8"]
[null,140,"Mennoni","Alice","Borsi-Pazzini","6:04.3"]
[null,141,"Turceac","Isabella","Bartolena","6:05.7"]
[null,142,"Frassinesi","Dafne","Borsi-Pazzini","6:05.8"]
[null,143,"Fornaciari","Gaia","Bartolena","6:06.0"]
[null,144,"Vincenti","Anita","Bartolena","6:07.1"]
[null,145,"Anastasia","Alice","Bartolena","6:07.2"]
[null,94,"Falcinelli","Nina","Don Angeli","6:08.2"]
[null,146,"Voliani","Giorgia","Bartolena","6:08.7"]
[null,147,"Luperini","Martina","Benedettini","6:09.9"]
[null,148,"Cascelli","Alice","Micali","6:10.0"]
[null,149,"Iannazzo","Carlotta","Bartolena","6:10.0"]
[null,150,"Papirii","Isabella","Bartolena","6:10.3"]
[null,151,"Niccolai","Vittoria","Bartolena","6:11.1"]
[null,152,"Errante","Kendra","Don Angeli","6:11.4"]
[null,153,"Borsellini","Marina","Bartolena","6:12.2"]
[null,154,"Villa","Sara","Bartolena","6:13.5"]
[null,155,"Fazzi","Marta","Don Angeli","6:14.3"]
[null,156,"Baldi","Vittoria","Bartolena","6:14.6"]
[null,158,"Bair Boyd","Viola Sophia","Borsi-Pazzini","6:15.0"]
[null,157,"Tafani","Giulia","Picchi","6:15.7"]
[null,159,"Nwaebo","Chioma","Don Angeli","6:16.1"]
[null,160,"Paskar","Anastasia","Borsi-Pazzini","6:16.6"]
[null,161,"Zucchi","Aurora","Benedettini","6:17.3"]
[null,162,"Ihebom","Marvagel","Bartolena","6:17.7"]
[null,163,"Camici","Lucrezia","Bartolena","6:17.9"]
[null,164,"Luschi","Camilla","Bartolena","6:18.0"]
[null,165,"Manzi","Mia","Bartolena","6:21.7"]
[null,166,"Fazio ","Elisa","Mazzini","6:22.2"]
[null,167,"Saltarelli","Adele","Bartolena","6:22.4"]
[null,168,"Fioretti","Giulia","Don Angeli","6:23.2"]
[null,169,"Pistoini","Giada","Picchi","6:24.2"]
[null,170,"Gioia","Valentina","Mazzini","6:25.2"]
[null,171,"Salvadori","Maddalena","Bartolena","6:26.7"]
[null,172,"Bruno","Asia","Borsi-Pazzini","6:27.4"]
[null,173,"Lombardi","Noemi","Bartolena","6:28.5"]
[null,174,"Fantei","Matilda","Mazzini","6:30.1"]
[null,175,"Elisei","Giorgia","Don Angeli","6:30.7"]
[null,176,"Razzauti","Rebecca","Picchi","6:30.8"]
[null,177,"Maggini","Minusha","Borsi-Pazzini","6:32.2"]
[null,178,"Covaciu","Eleonora","Bartolena","6:32.7"]
[null,179,"Rocchi","Valeria","Bartolena","6:34.3"]
[null,180,"Daumiller","Viola","Mazzini","6:34.4"]
[null,181,"Sparla","Giulia","Bartolena","6:35.3"]
[null,182,"Aquino","Marta","Bartolena","6:36.0"]
[null,183,"Giannelli","Greta",null,"6:36.6"]
[null,184,"Nelli","Beatrice","Don Angeli","6:38.7"]
[null,185,"Guarguaglini","Marta","Bartolena","6:38.8"]
[null,186,"Ennabaoui","Ermin","Don Angeli","6:40.4"]
[null,187,"Gassani","Giulia","Bartolena","6:41.7"]
[null,188,"Masi","Jennifer","Mazzini","6:43.7"]
[null,189,"Botti","Aurora","Bartolena","6:45.4"]
[null,190,"Virgillito","Giulia","Don Angeli","6:46.4"]
[null,191,"Favilla","Agata","Bartolena","6:46.5"]
[null,192,"Musumeci","Ginevra","Borsi-Pazzini","6:47.0"]
[null,193,"Bolognini","Elena","Borsi-Pazzini","6:48.2"]
[null,194,"Scardino","Aurora","Mazzini","6:48.5"]
[null,195,"Conti","Alessia","Don Angeli","6:49.8"]
[null,{"$f":"B207+1","v":196},"Menapace","Emma","Mazzini","6:50.3"]
[null,{"$f":"B208+1","v":197},"Cecchini","Sara","Don Angeli","6:52.0"]
[null,198,"Sorrentino","Noemi","Don Angeli","6:52.1"]
[null,199,"Carpi ","Beatrice","Bartolena","6:55.0"]
[null,200,"Venturi","Gaia","Micali","6:56.8"]
[null,201,"Lemmi","Gaia","Micali","6:57.0"]
[null,202,"Landi","Olimpia","Bartolena","6:57.0"]
[null,203,"Del Turco","Marta","Picchi","6:58.0"]
[null,204,"Mantellassi","Martina","Picchi","6:58.4"]
[null,205,"Nannicini","Giulia","Picchi","6:58.8"]
[null,206,"Cappagli","Gaia","Borsi-Pazzini","6:58.8"]
[null,207,"Mondanelli","Letizia","Micali","6:59.0"]
[null,208,"Damiani","Ginevra","Picchi","6:59.4"]
[null,209,"Grandini","Camilla","Picchi","7:00.0"]
[null,210,"Dhahr","Anna lova","Mazzini","7:00.3"]
[null,211,"Ferrarini","Margherita","Borsi-Pazzini","7:05.1"]
[null,212,"Demi","Sofia","Mazzini","7:05.9"]
[null,213,"Crisanti","Gaia","Mazzini","7:07.0"]
[null,214,"Castelli","Alessandra","Bartolena","7:07.7"]
[null,215,"Cozzi","Carmen","Mazzini","7:08.8"]
[null,216,"El Fautouri","Adsmah","Mazzini","7:10.9"]
[null,217,"Palumbo","Francesca","Borsi-Pazzini","7:18.8"]
[null,218,"Gambaccioni","Emma","Mazzini","7:23.2"]
[null,219,"Di Blasi","Emma","Bartolena","7:24.0"]
[null,220,"Mantovani","Viola","Bartolena","7:25.9"]
[null,221,"Calvaruso","Giada","Mazzini","7:39.1"]
[null,222,"Vulcano","Elisabetta","Borsi-Pazzini","7:49.1"]
[null,223,"Sancasciano","Rebecca","Mazzini","8:23.7"]
[null,224,"Moisè","Aurora","Picchi","8:48.1"]

{"sheet":"SCUOLE","index":7,"n_rows":25,"n_cols":6,"rows_kept":25,"cut":false,"hidden":false,"merged":[]}
[null,null,null,"HOME"]
[]
[]
[null,null,"25.a edizione"]
[null,null,"    \"CAMPESTRE SCUOLA MARATONA\""]
[null,null,"      18° TROFEO CHRISTIAN BARTOLI"]
[null,null,"LIVORNO - CAMPO SCUOLA \"R. MARTELLI\"  -   9 NOVEMBRE 2019"]
[null,null,"ORGANIZZAZIONE: A.S.D. Livornomarathon e Atletica Livorno"]
[]
[]
[]
[null,null,"CLASSIFICA PER ISTITUTI"]
[]
[null,1,"Bartolena",null,305,357]
[null,2,"Mazzini",null,357,206]
[null,3,"Picchi Collesalvetti",null,0,112]
[null,4,"Micali",null,122,98]
[null,5," Borsi-Pazzini",null,121,87]
[null,6,"Don Angeli",null,7,58]
[null,7,"Benedettini",null,44,24]
[null,8,"Maria Ausiliatrice",null,28,10]
[null,9,"Bolognesi",null,9,6]
[null,10,"Santo Spirito",null,0,4]
[null,null,"Ritirati"]
[null,null,"Totale",null,null,{"$f":"SUM(F14:F24)","v":962}]